Workbook

Sheet FP산정(간이법)
B2: 기능점수 산정 | J2: 신규개발 | K2: =SUMIF(J:J,J2,I:I) -> 69.80 FP
J3: 기능변경 | K3: =SUMIF(J:J,J3,Q:Q) -> 21.45 FP
J4: 기능삭제 | K4: 측정 비대상
J5: 수정없이 재사용 | K5: =SUMIF(J:J,J5,I:I) -> 566.80 FP
F6: EIF | G6: = 관리주체가 외부에 있으므로 기능변경 측정 대상이 아님에 유의
B7: 기능명 | F7: 데이터 및 트랜잭션 기능 | I7: FP 산출 | J7: 재사용유형 | K7: FTR 변경 | L7: DET 변경 | M7: FTR 변경률 | N7: DET 변경률 | O7: 기능 변경률 | P7: 영향 계수 | Q7: 재사용 기능점수 | R7: 비고
B8: ①어플리케이션명 | C8: ②세부 업무명 | D8: ③단위프로세스명 | E8: 단위프로세스 설명 | F8: ④FP유형 | G8: ⑤FTR | H8: ⑥DET | I8: ⑧가중치
B9: ㅇㅇ시스템 | C9: 기준정보관리 | D9: 공통자료관리 | E9: 공통코드정보 등록 | F9: EI | I9: =IF(F9="","",IF(F9="EI",4,IF(F9="EO",5.2,IF(F9="EQ",3.9,IF(F9="ILF",7.5,IF(F9="EIF",5.4)))))) -> 4.0 | J9: 수정없이 재사용 | M9: =IFERROR(IF(J9="기능변경",K9/G9,""),"") ->  | N9: =IFERROR(IF(J9="기능변경",L9/H9,""),"") ->  | O9: =IF(J9="기능변경",IF(F9="ILF",N9,IF(F9="EIF","재검토",IF(M9=0,N9,IF(N9=0,M9,(M9+N9)/2)))),"") ->  | P9: =IF(O9<>0,IF(J9="기능변경",IF(O9<=0.33,0.25,IF(O9>0.66,0.75,0.5)),IF(J9="기능삭제",0,"")),"") ->  | Q9: =IFERROR(I9*P9,"") ->  | T9: 공통코드정보 등록 | U9: =T9=E9 -> TRUE
B10: ㅇㅇ시스템 | C10: 기준정보관리 | D10: 공통자료관리 | E10: 공통코드정보 조회 | F10: EQ | I10: 3.9 | J10: 수정없이 재사용 | M10: =IFERROR(IF(J10="기능변경",K10/G10,""),"") ->  | N10: =IFERROR(IF(J10="기능변경",L10/H10,""),"") ->  | O10: =IF(J10="기능변경",IF(F10="ILF",N10,IF(F10="EIF","재검토",IF(M10=0,N10,IF(N10=0,M10,(M10+N10)/2)))),"") ->  | P10: =IF(O10<>0,IF(J10="기능변경",IF(O10<=0.33,0.25,IF(O10>0.66,0.75,0.5)),IF(J10="기능삭제",0,"")),"") ->  | Q10: =IFERROR(I10*P10,"") ->  | T10: 공통코드정보 조회 | U10: =T10=E10 -> TRUE
B11: ㅇㅇ시스템 | C11: 기준정보관리 | D11: 공통자료관리 | E11: 공통코드정보 수정 | F11: EI | I11: 4.0 | J11: 수정없이 재사용 | T11: 공통코드정보 수정 | U11: TRUE
B12: ㅇㅇ시스템 | C12: 기준정보관리 | D12: 공통자료관리 | E12: 공통코드정보 삭제 | F12: EI | I12: 4.0 | J12: 수정없이 재사용 | T12: 공통코드정보 삭제 | U12: TRUE
B13: ㅇㅇ시스템 | C13: 기준정보관리 | D13: 공통자료관리 | E13: 공통코드정보 | F13: ILF | I13: =IF(F13="","",IF(F13="EI",4,IF(F13="EO",5.2,IF(F13="EQ",3.9,IF(F13="ILF",7.5,IF(F13="EIF",5.4)))))) -> 7.5 | J13: 수정없이 재사용 | M13: =IFERROR(IF(J13="기능변경",K13/G13,""),"") ->  | N13: =IFERROR(IF(J13="기능변경",L13/H13,""),"") ->  | O13: =IF(J13="기능변경",IF(F13="ILF",N13,IF(F13="EIF","재검토",IF(M13=0,N13,IF(N13=0,M13,(M13+N13)/2)))),"") ->  | P13: =IF(O13<>0,IF(J13="기능변경",IF(O13<=0.33,0.25,IF(O13>0.66,0.75,0.5)),IF(J13="기능삭제",0,"")),"") ->  | Q13: =IFERROR(I13*P13,"") ->  | T13: 공통코드정보 | U13: TRUE
B14: ㅇㅇ시스템 | C14: 기준정보관리 | D14: 거래처 관리 | E14: 거래처정보 등록 | F14: EI | I14: 4.0 | J14: 수정없이 재사용 | T14: 거래처정보 등록 | U14: TRUE
B15: ㅇㅇ시스템 | C15: 기준정보관리 | D15: 거래처 관리 | E15: 거래처정보 수정 | F15: EI | I15: 4.0 | J15: 수정없이 재사용 | T15: 거래처정보 수정 | U15: TRUE
B16: ㅇㅇ시스템 | C16: 기준정보관리 | D16: 거래처 관리 | E16: 거래처정보 삭제 | F16: EI | I16: 4.0 | J16: 수정없이 재사용 | T16: 거래처정보 삭제 | U16: TRUE
B17: ㅇㅇ시스템 | C17: 기준정보관리 | D17: 거래처 관리 | E17: 거래처정보 | F17: ILF | I17: 7.5 | J17: 수정없이 재사용 | T17: 거래처정보 | U17: TRUE
B18: ㅇㅇ시스템 | C18: 기준정보관리 | D18: 제품 마스터 관리 | E18: 생산제품 기본정보 등록 | F18: EI | I18: 4.0 | J18: 수정없이 재사용 | T18: 생산제품 기본정보 등록 | U18: TRUE
B19: ㅇㅇ시스템 | C19: 기준정보관리 | D19: 제품 마스터 관리 | E19: 생산제품 기본정보 조회 | F19: EQ | I19: 3.9 | J19: 수정없이 재사용 | T19: 생산제품 기본정보 조회 | U19: TRUE
B20: ㅇㅇ시스템 | C20: 기준정보관리 | D20: 제품 마스터 관리 | E20: 생산제품 기본정보 수정 | F20: EI | I20: 4.0 | J20: 수정없이 재사용 | T20: 생산제품 기본정보 수정 | U20: TRUE
B21: ㅇㅇ시스템 | C21: 기준정보관리 | D21: 제품 마스터 관리 | E21: 생산제품 기본정보 삭제 | F21: EI | I21: 4.0 | J21: 수정없이 재사용 | T21: 생산제품 기본정보 삭제 | U21: TRUE
B22: ㅇㅇ시스템 | C22: 기준정보관리 | D22: 제품 마스터 관리 | E22: 생상제품 기본정보 | F22: ILF | I22: 7.5 | J22: 수정없이 재사용 | T22: 생상제품 기본정보 | U22: TRUE
B23: ㅇㅇ시스템 | C23: 기준정보관리 | D23: 원자재 마스터 관리 | E23: 투입 원자재 기본정보 등록 | F23: EI | I23: 4.0 | J23: 수정없이 재사용 | T23: 투입 원자재 기본정보 등록 | U23: TRUE
B24: ㅇㅇ시스템 | C24: 기준정보관리 | D24: 원자재 마스터 관리 | E24: 투입 원자재 기본정보 조회 | F24: EQ | I24: 3.9 | J24: 수정없이 재사용 | T24: 투입 원자재 기본정보 조회 | U24: TRUE
B25: ㅇㅇ시스템 | C25: 기준정보관리 | D25: 원자재 마스터 관리 | E25: 투입 원자재 기본정보 수정 | F25: EI | I25: 4.0 | J25: 수정없이 재사용 | T25: 투입 원자재 기본정보 수정 | U25: TRUE
B26: ㅇㅇ시스템 | C26: 기준정보관리 | D26: 원자재 마스터 관리 | E26: 투입 원자재 기본정보 삭제 | F26: EI | I26: 4.0 | J26: 수정없이 재사용 | T26: 투입 원자재 기본정보 삭제 | U26: TRUE
B27: ㅇㅇ시스템 | C27: 기준정보관리 | D27: 원자재 마스터 관리 | E27: 투입 원자재 기본정보 | F27: ILF | I27: 7.5 | J27: 수정없이 재사용 | T27: 투입 원자재 기본정보 | U27: TRUE
B28: ㅇㅇ시스템 | C28: 기준정보관리 | D28: 공정 마스터 관리 | E28: 생산공정 기본정보 등록 | F28: EI | G28: 1 | H28: 10 | I28: 4.0 | J28: 기능변경 | L28: 3 | M28: 0.0% | N28: 30.0% | O28: 30.0% | P28: 0.25 | Q28: 1.00 | T28: 생산공정 기본정보 등록 | U28: TRUE
B29: ㅇㅇ시스템 | C29: 기준정보관리 | D29: 공정 마스터 관리 | E29: 생산공정 기본정보 조회 | F29: EQ | G29: 1 | H29: 10 | I29: 3.9 | J29: 기능변경 | L29: 3 | M29: 0.0% | N29: 30.0% | O29: 30.0% | P29: 0.25 | Q29: 0.98 | T29: 생산공정 기본정보 조회 | U29: TRUE
B30: ㅇㅇ시스템 | C30: 기준정보관리 | D30: 공정 마스터 관리 | E30: 생산공정 기본정보 수정 | F30: EI | G30: 1 | H30: 10 | I30: 4.0 | J30: 기능변경 | L30: 3 | M30: 0.0% | N30: 30.0% | O30: 30.0% | P30: 0.25 | Q30: 1.00 | T30: 생산공정 기본정보 수정 | U30: TRUE
B31: ㅇㅇ시스템 | C31: 기준정보관리 | D31: 공정 마스터 관리 | E31: 생산공정 기본정보 삭제 | F31: EI | G31: 1 | H31: 10 | I31: 4.0 | J31: 기능변경 | L31: 3 | M31: 0.0% | N31: 30.0% | O31: 30.0% | P31: 0.25 | Q31: 1.00 | T31: 생산공정 기본정보 삭제 | U31: TRUE
B32: ㅇㅇ시스템 | C32: 기준정보관리 | D32: 공정 마스터 관리 | E32: 생산공정 기본정보 | F32: ILF | G32: 1 | H32: 10 | I32: 7.5 | J32: 기능변경 | L32: 3 | M32: 0.0% | N32: 30.0% | O32: 30.0% | P32: 0.25 | Q32: 1.88 | T32: 생산공정 기본정보 | U32: TRUE
B33: ㅇㅇ시스템 | C33: 기준정보관리 | D33: 공정별 작업자 관리 | E33: 생산공정별 작업자정보 등록 | F33: EI | G33: 1 | H33: 10 | I33: 4.0 | J33: 기능변경 | L33: 3 | M33: 0.0% | N33: 30.0% | O33: 30.0% | P33: 0.25 | Q33: 1.00 | T33: 생산공정별 작업자정보 등록 | U33: TRUE
B34: ㅇㅇ시스템 | C34: 기준정보관리 | D34: 공정별 작업자 관리 | E34: 생산공정별 작업자정보 조회 | F34: EQ | G34: 1 | H34: 10 | I34: 3.9 | J34: 기능변경 | L34: 3 | M34: 0.0% | N34: 30.0% | O34: 30.0% | P34: 0.25 | Q34: 0.98 | T34: 생산공정별 작업자정보 조회 | U34: TRUE
B35: ㅇㅇ시스템 | C35: 기준정보관리 | D35: 공정별 작업자 관리 | E35: 생산공정별 작업자정보 수정 | F35: EI | G35: 1 | H35: 10 | I35: 4.0 | J35: 기능변경 | L35: 3 | M35: 0.0% | N35: 30.0% | O35: 30.0% | P35: 0.25 | Q35: 1.00 | T35: 생산공정별 작업자정보 수정 | U35: TRUE
B36: ㅇㅇ시스템 | C36: 기준정보관리 | D36: 공정별 작업자 관리 | E36: 생산공정별 작업자정보 삭제 | F36: EI | G36: 1 | H36: 10 | I36: 4.0 | J36: 기능변경 | L36: 3 | M36: 0.0% | N36: 30.0% | O36: 30.0% | P36: 0.25 | Q36: 1.00 | T36: 생산공정별 작업자정보 삭제 | U36: TRUE
B37: ㅇㅇ시스템 | C37: 기준정보관리 | D37: 공정별 작업자 관리 | E37: 생산공정별 작업자정보 | F37: ILF | G37: 1 | H37: 10 | I37: 7.5 | J37: 기능변경 | L37: 3 | M37: 0.0% | N37: 30.0% | O37: 30.0% | P37: 0.25 | Q37: 1.88 | T37: 생산공정별 작업자정보 | U37: TRUE
B38: ㅇㅇ시스템 | C38: 기준정보관리 | D38: 공정별 불량유형 관리 | E38: 공정별 불량유형 정보 등록 | F38: EI | I38: 4.0 | J38: 수정없이 재사용 | T38: 공정별 불량유형 정보 등록 | U38: TRUE
B39: ㅇㅇ시스템 | C39: 기준정보관리 | D39: 공정별 불량유형 관리 | E39: 공정별 불량유형 정보 조회 | F39: EQ | I39: 3.9 | J39: 수정없이 재사용 | T39: 공정별 불량유형 정보 조회 | U39: TRUE
B40: ㅇㅇ시스템 | C40: 기준정보관리 | D40: 공정별 불량유형 관리 | E40: 공정별 불량유형 정보 수정 | F40: EI | I40: 4.0 | J40: 수정없이 재사용 | T40: 공정별 불량유형 정보 수정 | U40: TRUE
B41: ㅇㅇ시스템 | C41: 기준정보관리 | D41: 공정별 불량유형 관리 | E41: 공정별 불량유형 정보 삭제 | F41: EI | I41: 4.0 | J41: 수정없이 재사용 | T41: 공정별 불량유형 정보 삭제 | U41: TRUE
B42: ㅇㅇ시스템 | C42: 기준정보관리 | D42: 공정별 불량유형 관리 | E42: 공정별 불량유형 정보 | F42: ILF | I42: 7.5 | J42: 수정없이 재사용 | T42: 공정별 불량유형 정보 | U42: TRUE
B43: ㅇㅇ시스템 | C43: 기준정보관리 | D43: 공정별 투입원자재 관리 | E43: 공정별 투입원자재 정보 등록 | F43: EI | I43: 4.0 | J43: 수정없이 재사용 | T43: 공정별 투입원자재 정보 등록 | U43: TRUE
B44: ㅇㅇ시스템 | C44: 기준정보관리 | D44: 공정별 투입원자재 관리 | E44: 공정별 투입원자재 정보 조회 | F44: EQ | I44: 3.9 | J44: 수정없이 재사용 | T44: 공정별 투입원자재 정보 조회 | U44: TRUE
B45: ㅇㅇ시스템 | C45: 기준정보관리 | D45: 공정별 투입원자재 관리 | E45: 공정별 투입원자재 정보 수정 | F45: EI | I45: 4.0 | J45: 수정없이 재사용 | T45: 공정별 투입원자재 정보 수정 | U45: TRUE
B46: ㅇㅇ시스템 | C46: 기준정보관리 | D46: 공정별 투입원자재 관리 | E46: 공정별 투입원자재 정보 삭제 | F46: EI | I46: 4.0 | J46: 수정없이 재사용 | T46: 공정별 투입원자재 정보 삭제 | U46: TRUE
B47: ㅇㅇ시스템 | C47: 기준정보관리 | D47: 공정별 투입원자재 관리 | E47: 공정별 투입원자재 정보 | F47: ILF | I47: 7.5 | J47: 수정없이 재사용 | T47: 공정별 투입원자재 정보 | U47: TRUE
B48: ㅇㅇ시스템 | C48: 생산관리 | D48: 수주정보 관리 | E48: 거래처별 수주정보 등록 | F48: EI | I48: 4.0 | J48: 신규개발 | T48: 거래처별 수주정보 등록 | U48: TRUE
B49: ㅇㅇ시스템 | C49: 생산관리 | D49: 수주정보 관리 | E49: 거래처별 수주정보 조회 | F49: EQ | I49: 3.9 | J49: 신규개발 | T49: 거래처별 수주정보 조회 | U49: TRUE
B50: ㅇㅇ시스템 | C50: 생산관리 | D50: 수주정보 관리 | E50: 거래처별 수주정보 수정 | F50: EI | I50: 4.0 | J50: 신규개발 | T50: 거래처별 수주정보 수정 | U50: TRUE
B51: ㅇㅇ시스템 | C51: 생산관리 | D51: 수주정보 관리 | E51: 거래처별 수주정보 삭제 | F51: EI | I51: 4.0 | J51: 신규개발 | T51: 거래처별 수주정보 삭제 | U51: TRUE
B52: ㅇㅇ시스템 | C52: 생산관리 | D52: 수주정보 관리 | E52: 거래처별 수주정보 | F52: ILF | I52: 7.5 | J52: 신규개발 | T52: 거래처별 수주정보 | U52: TRUE
B53: ㅇㅇ시스템 | C53: 생산관리 | D53: 생산계획정보 관리 | E53: 일정별 생산계획정보 등록 | F53: EI | I53: 4.0 | J53: 신규개발 | T53: 일정별 생산계획정보 등록 | U53: TRUE
B54: ㅇㅇ시스템 | C54: 생산관리 | D54: 생산계획정보 관리 | E54: 일정별 생산계획정보 조회 | F54: EQ | I54: 3.9 | J54: 신규개발 | T54: 일정별 생산계획정보 조회 | U54: TRUE
B55: ㅇㅇ시스템 | C55: 생산관리 | D55: 생산계획정보 관리 | E55: 일정별 생산계획정보 수정 | F55: EI | I55: 4.0 | J55: 신규개발 | T55: 일정별 생산계획정보 수정 | U55: TRUE
B56: ㅇㅇ시스템 | C56: 생산관리 | D56: 생산계획정보 관리 | E56: 일정별 생산계획정보 삭제 | F56: EI | I56: 4.0 | J56: 신규개발 | T56: 일정별 생산계획정보 삭제 | U56: TRUE
B57: ㅇㅇ시스템 | C57: 생산관리 | D57: 생산계획정보 관리 | E57: 일정별 생산계획정보 | F57: ILF | I57: 7.5 | J57: 신규개발 | T57: 일정별 생산계획정보 | U57: TRUE
B58: ㅇㅇ시스템 | C58: 생산관리 | D58: 작업지시 관리 | E58: 일정별, 공정별 작업지시정보 등록 | F58: EI | I58: 4.0 | J58: 수정없이 재사용 | T58: 일정별, 공정별 작업지시정보 등록 | U58: TRUE
B59: ㅇㅇ시스템 | C59: 생산관리 | D59: 작업지시 관리 | E59: 일정별, 공정별 작업지시정보 조회 | F59: EQ | I59: 3.9 | J59: 수정없이 재사용 | T59: 일정별, 공정별 작업지시정보 조회 | U59: TRUE
B60: ㅇㅇ시스템 | C60: 생산관리 | D60: 작업지시 관리 | E60: 일정별, 공정별 작업지시정보 수정 | F60: EI | I60: 4.0 | J60: 수정없이 재사용 | T60: 일정별, 공정별 작업지시정보 수정 | U60: TRUE
B61: ㅇㅇ시스템 | C61: 생산관리 | D61: 작업지시 관리 | E61: 일정별, 공정별 작업지시정보 삭제 | F61: EI | I61: 4.0 | J61: 수정없이 재사용 | T61: 일정별, 공정별 작업지시정보 삭제 | U61: TRUE
B62: ㅇㅇ시스템 | C62: 생산관리 | D62: 작업지시 관리 | E62: 일정별, 공정별 작업지시정보 | F62: ILF | I62: 7.5 | J62: 수정없이 재사용 | T62: 일정별, 공정별 작업지시정보 | U62: TRUE
B63: ㅇㅇ시스템 | C63: 생산관리 | D63: 기간별 생산실적 | E63: 기간별 생산실적 정보조회 | F63: EO | I63: 5.2 | J63: 수정없이 재사용 | T63: 기간별 생산실적 정보조회 | U63: TRUE
B64: ㅇㅇ시스템 | C64: 생산관리 | D64: 제품별 생산실적 | E64: 제품별 생산실적 정보조회 | F64: EO | I64: 5.2 | J64: 수정없이 재사용 | T64: 제품별 생산실적 정보조회 | U64: TRUE
B65: ㅇㅇ시스템 | C65: 생산관리 | D65: 공정별 작업현황정보 관리 | E65: 공정별 작업현황 정보조회 | F65: EQ | I65: 3.9 | J65: 수정없이 재사용 | T65: 공정별 작업현황 정보조회 | U65: TRUE
B66: ㅇㅇ시스템 | C66: 생산관리 | D66: 작업일보 관리 | E66: 공정별 작업일보 정보 등록 | F66: EI | I66: 4.0 | J66: 수정없이 재사용 | T66: 공정별 작업일보 정보 등록 | U66: TRUE
B67: ㅇㅇ시스템 | C67: 생산관리 | D67: 작업일보 관리 | E67: 공정별 작업일보 정보 조회 | F67: EQ | I67: 3.9 | J67: 수정없이 재사용 | T67: 공정별 작업일보 정보 조회 | U67: TRUE
B68: ㅇㅇ시스템 | C68: 생산관리 | D68: 작업일보 관리 | E68: 공정별 작업일보 정보 수정 | F68: EI | I68: 4.0 | J68: 수정없이 재사용 | T68: 공정별 작업일보 정보 수정 | U68: TRUE
B69: ㅇㅇ시스템 | C69: 생산관리 | D69: 작업일보 관리 | E69: 공정별 작업일보 정보 삭제 | F69: EI | I69: 4.0 | J69: 수정없이 재사용 | T69: 공정별 작업일보 정보 삭제 | U69: TRUE
B70: ㅇㅇ시스템 | C70: 생산관리 | D70: 작업일보 관리 | E70: 공정별 작업일보 정보 | F70: ILF | I70: 7.5 | J70: 수정없이 재사용 | T70: 공정별 작업일보 정보 | U70: TRUE
B71: ㅇㅇ시스템 | C71: 생산관리 | D71: LOT별 원자재 현황 | E71: 생산LOT별 투입원자재 현황 조회 | F71: EO | I71: 5.2 | J71: 수정없이 재사용 | T71: 생산LOT별 투입원자재 현황 조회 | U71: TRUE
B72: ㅇㅇ시스템 | C72: 생산관리 | D72: 생산 모니터링 | E72: 생산진행 현황정보 실시간 모니터링 | F72: EQ | I72: 3.9 | J72: 수정없이 재사용 | T72: 생산진행 현황정보 실시간 모니터링 | U72: TRUE
B73: ㅇㅇ시스템 | C73: 공정관리 | D73: 원자재 입고관리 | E73: 투입원자재 입고정보 등록 | F73: EI | I73: 4.0 | J73: 수정없이 재사용 | T73: 투입원자재 입고정보 등록 | U73: TRUE
B74: ㅇㅇ시스템 | C74: 공정관리 | D74: 원자재 입고관리 | E74: 투입원자재 입고정보 수정 | F74: EI | I74: 4.0 | J74: 수정없이 재사용 | T74: 투입원자재 입고정보 수정 | U74: =T74=E74 -> TRUE
B75: ㅇㅇ시스템 | C75: 공정관리 | D75: 원자재 입고관리 | E75: 투입원자재 입고정보 삭제 | F75: EI | I75: 4.0 | J75: 수정없이 재사용 | T75: 투입원자재 입고정보 삭제 | U75: TRUE
B76: ㅇㅇ시스템 | C76: 공정관리 | D76: 원자재 입고관리 | E76: 투입원자재 입고정보 조회 | F76: EQ | I76: 3.9 | J76: 수정없이 재사용 | T76: 투입원자재 입고정보 조회 | U76: TRUE
B77: ㅇㅇ시스템 | C77: 공정관리 | D77: 원자재 입고관리 | E77: 투입원자재 입고정보 | F77: ILF | I77: =IF(F77="","",IF(F77="EI",4,IF(F77="EO",5.2,IF(F77="EQ",3.9,IF(F77="ILF",7.5,IF(F77="EIF",5.4)))))) -> 7.5 | J77: 수정없이 재사용 | M77: =IFERROR(IF(J77="기능변경",K77/G77,""),"") ->  | N77: =IFERROR(IF(J77="기능변경",L77/H77,""),"") ->  | O77: =IF(J77="기능변경",IF(F77="ILF",N77,IF(F77="EIF","재검토",IF(M77=0,N77,IF(N77=0,M77,(M77+N77)/2)))),"") ->  | P77: =IF(O77<>0,IF(J77="기능변경",IF(O77<=0.33,0.25,IF(O77>0.66,0.75,0.5)),IF(J77="기능삭제",0,"")),"") ->  | Q77: =IFERROR(I77*P77,"") ->  | T77: 투입원자재 입고정보 | U77: TRUE
B78: ㅇㅇ시스템 | C78: 공정관리 | D78: 와인딩 공정관리 | E78: 오인딩 공정 작업정보 등록 | F78: EI | I78: 4.0 | J78: 수정없이 재사용 | T78: 오인딩 공정 작업정보 등록 | U78: TRUE
B79: ㅇㅇ시스템 | C79: 공정관리 | D79: 와인딩 공정관리 | E79: 오인딩 공정 작업정보 수정 | F79: EI | I79: 4.0 | J79: 수정없이 재사용 | T79: 오인딩 공정 작업정보 수정 | U79: TRUE
B80: ㅇㅇ시스템 | C80: 공정관리 | D80: 와인딩 공정관리 | E80: 오인딩 공정 작업정보 삭제 | F80: EI | I80: 4.0 | J80: 수정없이 재사용 | T80: 오인딩 공정 작업정보 삭제 | U80: TRUE
B81: ㅇㅇ시스템 | C81: 공정관리 | D81: 와인딩 공정관리 | E81: 오인딩 공정 작업정보 조회 | F81: EQ | I81: 3.9 | J81: 수정없이 재사용 | T81: 오인딩 공정 작업정보 조회 | U81: TRUE
B82: ㅇㅇ시스템 | C82: 공정관리 | D82: 와인딩 공정관리 | E82: 오인딩 공정 작업정보 | F82: ILF | I82: 7.5 | J82: 수정없이 재사용 | T82: 오인딩 공정 작업정보 | U82: TRUE
B83: ㅇㅇ시스템 | C83: 공정관리 | D83: 조립/테스트 공정관리 | E83: 조립/테스트 공정 작업 등록 | F83: EI | I83: 4.0 | J83: 수정없이 재사용 | T83: 조립/테스트 공정 작업 등록 | U83: TRUE
B84: ㅇㅇ시스템 | C84: 공정관리 | D84: 조립/테스트 공정관리 | E84: 조립/테스트 공정 작업 수정 | F84: EI | I84: 4.0 | J84: 수정없이 재사용 | T84: 조립/테스트 공정 작업 수정 | U84: TRUE
B85: ㅇㅇ시스템 | C85: 공정관리 | D85: 조립/테스트 공정관리 | E85: 조립/테스트 공정 작업 삭제 | F85: EI | I85: 4.0 | J85: 수정없이 재사용 | T85: 조립/테스트 공정 작업 삭제 | U85: TRUE
B86: ㅇㅇ시스템 | C86: 공정관리 | D86: 조립/테스트 공정관리 | E86: 조립/테스트 공정 작업 정보 | F86: ILF | I86: 7.5 | J86: 수정없이 재사용 | T86: 조립/테스트 공정 작업 정보 | U86: TRUE
B87: ㅇㅇ시스템 | C87: 공정관리 | D87: 엑폭시경화/냉각공정관리 | E87: 엑폭시 경화/냉각 공정 작업 등록 | F87: EI | I87: 4.0 | J87: 수정없이 재사용 | T87: 엑폭시 경화/냉각 공정 작업 등록 | U87: TRUE
B88: ㅇㅇ시스템 | C88: 공정관리 | D88: 엑폭시경화/냉각공정관리 | E88: 엑폭시 경화/냉각 공정 작업 수정 | F88: EI | I88: 4.0 | J88: 수정없이 재사용 | T88: 엑폭시 경화/냉각 공정 작업 수정 | U88: TRUE
B89: ㅇㅇ시스템 | C89: 공정관리 | D89: 엑폭시경화/냉각공정관리 | E89: 엑폭시 경화/냉각 공정 작업 삭제 | F89: EI | I89: 4.0 | J89: 수정없이 재사용 | T89: 엑폭시 경화/냉각 공정 작업 삭제 | U89: TRUE
B90: ㅇㅇ시스템 | C90: 공정관리 | D90: 엑폭시경화/냉각공정관리 | E90: 엑폭시 경화/냉각 공정 작업 정보 | F90: ILF | I90: 7.5 | J90: 수정없이 재사용 | T90: 엑폭시 경화/냉각 공정 작업 정보 | U90: TRUE
B91: ㅇㅇ시스템 | C91: 공정관리 | D91: 최종 테스트 공정관리 | E91: 최종 테스트 공정 작업 등록 | F91: EI | I91: 4.0 | J91: 수정없이 재사용 | T91: 최종 테스트 공정 작업 등록 | U91: TRUE
B92: ㅇㅇ시스템 | C92: 공정관리 | D92: 최종 테스트 공정관리 | E92: 최종 테스트 공정 작업 수정 | F92: EI | I92: 4.0 | J92: 수정없이 재사용 | T92: 최종 테스트 공정 작업 수정 | U92: TRUE
B93: ㅇㅇ시스템 | C93: 공정관리 | D93: 최종 테스트 공정관리 | E93: 최종 테스트 공정 작업 삭제 | F93: EI | I93: 4.0 | J93: 수정없이 재사용 | T93: 최종 테스트 공정 작업 삭제 | U93: TRUE
B94: ㅇㅇ시스템 | C94: 공정관리 | D94: 최종 테스트 공정관리 | E94: 최종 테스트 공정 작업 정보 | F94: ILF | I94: 7.5 | J94: 수정없이 재사용 | T94: 최종 테스트 공정 작업 정보 | U94: TRUE
B95: ㅇㅇ시스템 | C95: 공정관리 | D95: 포장 공정관리 | E95: 제품 포장 공정 작업 등록 | F95: EI | G95: 1 | H95: 10 | I95: 4.0 | J95: 기능변경 | L95: 3 | M95: 0.0% | N95: 30.0% | O95: 30.0% | P95: 0.25 | Q95: 1.00 | T95: 제품 포장 공정 작업 등록 | U95: TRUE
B96: ㅇㅇ시스템 | C96: 공정관리 | D96: 포장 공정관리 | E96: 제품 포장 공정 작업 수정 | F96: EI | G96: 1 | H96: 10 | I96: 4.0 | J96: 기능변경 | L96: 3 | M96: 0.0% | N96: 30.0% | O96: 30.0% | P96: 0.25 | Q96: 1.00 | T96: 제품 포장 공정 작업 수정 | U96: TRUE
B97: ㅇㅇ시스템 | C97: 공정관리 | D97: 포장 공정관리 | E97: 제품 포장 공정 작업 삭제 | F97: EI | G97: 1 | H97: 10 | I97: 4.0 | J97: 기능변경 | L97: 3 | M97: 0.0% | N97: 30.0% | O97: 30.0% | P97: 0.25 | Q97: 1.00 | T97: 제품 포장 공정 작업 삭제 | U97: TRUE
B98: ㅇㅇ시스템 | C98: 공정관리 | D98: 포장 공정관리 | E98: 제품 포장 공정 작업 정보 | F98: ILF | G98: 1 | H98: 10 | I98: 7.5 | J98: 기능변경 | L98: 3 | M98: 0.0% | N98: 30.0% | O98: 30.0% | P98: 0.25 | Q98: 1.88 | T98: 제품 포장 공정 작업 정보 | U98: TRUE
B99: ㅇㅇ시스템 | C99: 공정관리 | D99: 출하 공정관리 | E99: 제품 출하 공정 작업 등록 | F99: EI | G99: 1 | H99: 10 | I99: 4.0 | J99: 기능변경 | L99: 3 | M99: 0.0% | N99: 30.0% | O99: 30.0% | P99: 0.25 | Q99: 1.00 | T99: 제품 출하 공정 작업 등록 | U99: TRUE
B100: ㅇㅇ시스템 | C100: 공정관리 | D100: 출하 공정관리 | E100: 제품 출하 공정 작업 수정 | F100: EI | G100: 1 | H100: 10 | I100: 4.0 | J100: 기능변경 | L100: 3 | M100: 0.0% | N100: 30.0% | O100: 30.0% | P100: 0.25 | Q100: 1.00 | T100: 제품 출하 공정 작업 수정 | U100: TRUE
B101: ㅇㅇ시스템 | C101: 공정관리 | D101: 출하 공정관리 | E101: 제품 출하 공정 작업 삭제 | F101: EI | G101: 1 | H101: 10 | I101: 4.0 | J101: 기능변경 | L101: 3 | M101: 0.0% | N101: 30.0% | O101: 30.0% | P101: 0.25 | Q101: 1.00 | T101: 제품 출하 공정 작업 삭제 | U101: TRUE
B102: ㅇㅇ시스템 | C102: 공정관리 | D102: 출하 공정관리 | E102: 제품 출하 공정 작업 정보 | F102: ILF | G102: 1 | H102: 10 | I102: 7.5 | J102: 기능변경 | L102: 3 | M102: 0.0% | N102: 30.0% | O102: 30.0% | P102: 0.25 | Q102: 1.88 | T102: 제품 출하 공정 작업 정보 | U102: TRUE
B103: ㅇㅇ시스템 | C103: 품질관리 | D103: 전압검사 관리 | E103: 전압검사장비 인터페이스 및 테스트 정보 수집 | F103: EI | I103: 4.0 | J103: 수정없이 재사용 | T103: 전압검사장비 인터페이스 및 테스트 정보 수집 | U103: TRUE
B104: ㅇㅇ시스템 | C104: 품질관리 | D104: 전압검사 관리 | E104: 전압검사장비 인터페이스 및 테스트 정보 | F104: ILF | I104: 7.5 | J104: 수정없이 재사용 | T104: 전압검사장비 인터페이스 및 테스트 정보 | U104: TRUE
B105: ㅇㅇ시스템 | C105: 품질관리 | D105: 제품검사 관리 | E105: 제품검사정보 등록 | F105: EI | I105: 4.0 | J105: 수정없이 재사용 | T105: 제품검사정보 등록, 수정, 삭제관리 | U105: FALSE
B106: ㅇㅇ시스템 | C106: 품질관리 | D106: 제품검사 관리 | E106: 제품검사정보 수정 | F106: EI | I106: 4.0 | J106: 수정없이 재사용 | T106: 제품검사정보 수정 | U106: TRUE
B107: ㅇㅇ시스템 | C107: 품질관리 | D107: 제품검사 관리 | E107: 제품검사정보 삭제 | F107: EI | I107: 4.0 | J107: 수정없이 재사용 | T107: 제품검사정보 삭제 | U107: TRUE
B108: ㅇㅇ시스템 | C108: 품질관리 | D108: 제품검사 관리 | E108: 제품검사정보 | F108: ILF | I108: 7.5 | J108: 수정없이 재사용 | T108: 제품검사정보 | U108: TRUE
B109: ㅇㅇ시스템 | C109: 품질관리 | D109: 통계적 품질정보 관리 | E109: 통계적 품질정보 등록 | F109: EI | I109: 4.0 | J109: 수정없이 재사용 | T109: 통계적 품질정보 등록 | U109: TRUE
B110: ㅇㅇ시스템 | C110: 품질관리 | D110: 통계적 품질정보 관리 | E110: 통계적 품질정보 삭제 | F110: EI | I110: 4.0 | J110: 수정없이 재사용 | T110: 통계적 품질정보 등록 | U110: FALSE
B111: ㅇㅇ시스템 | C111: 품질관리 | D111: 통계적 품질정보 관리 | E111: 통계적 품질정보 조회 | F111: EQ | I111: 3.9 | J111: 수정없이 재사용 | T111: 통계적 품질정보 삭제 | U111: FALSE
B112: ㅇㅇ시스템 | C112: 품질관리 | D112: 통계적 품질정보 관리 | E112: 통계적 품질정보 | F112: ILF | I112: 7.5 | J112: 수정없이 재사용 | T112: 통계적 품질정보 조회 | U112: FALSE
B113: ㅇㅇ시스템 | C113: 품질관리 | D113: 제품불량정보 관리 | E113: 제품별 불량정보 조회 | F113: EO | I113: 5.2 | J113: 수정없이 재사용 | T113: 통계적 품질정보 | U113: FALSE
B114: ㅇㅇ시스템 | C114: 품질관리 | D114: 제품불량정보 관리 | E114: 기간별 불량정보 조회 | F114: EO | I114: 5.2 | J114: 수정없이 재사용 | T114: 제품별 불량정보 조회 | U114: FALSE
B115: ㅇㅇ시스템 | C115: 품질관리 | D115: 제조이력관리 | E115: 제품별 제조이력 등록 | F115: EI | I115: 4.0 | J115: 수정없이 재사용 | T115: 기간별 불량정보 조회 | U115: FALSE
B116: ㅇㅇ시스템 | C116: 품질관리 | D116: 제조이력관리 | E116: 제품별 제조이력 수정 | F116: EI | I116: 4.0 | J116: 수정없이 재사용 | T116: 제품별 제조이력 등록 | U116: FALSE
B117: ㅇㅇ시스템 | C117: 품질관리 | D117: 제조이력관리 | E117: 제품별 제조이력 삭제 | F117: EI | I117: 4.0 | J117: 수정없이 재사용 | T117: 제품별 제조이력 수정 | U117: FALSE
B118: ㅇㅇ시스템 | C118: 품질관리 | D118: 제조이력관리 | E118: 제품별 제조이력 조회 | F118: EQ | I118: 3.9 | J118: 수정없이 재사용 | T118: 제품별 제조이력 삭제 | U118: FALSE
B119: ㅇㅇ시스템 | C119: 품질관리 | D119: 제조이력관리 | E119: 제품별 제조이력 정보 | F119: ILF | I119: 7.5 | J119: 수정없이 재사용 | T119: 제품별 제조이력 조회 | U119: FALSE
B120: ㅇㅇ시스템 | C120: 제품 | D120: 제품입고 등록 | E120: 완제품 입고등록 | F120: EI | I120: 4.0 | J120: 수정없이 재사용 | T120: 제품별 제조이력 정보 | U120: FALSE
B121: ㅇㅇ시스템 | C121: 입출하관리 | D121: 제품입고 등록 | E121: 완제품 입고수정 | F121: EI | I121: 4.0 | J121: 수정없이 재사용 | T121: 완제품 입고등록, 수정, 삭제관리 | U121: FALSE
B122: ㅇㅇ시스템 | C122: 입출하관리 | D122: 제품입고 등록 | E122: 완제품 입고삭제 | F122: EI | I122: 4.0 | J122: 수정없이 재사용 | T122: 완제품 입고수정 | U122: FALSE
B123: ㅇㅇ시스템 | C123: 입출하관리 | D123: 제품입고 등록 | E123: 완제품 입고정보 | F123: ILF | I123: 7.5 | J123: 수정없이 재사용 | T123: 완제품 입고삭제 | U123: FALSE
B124: ㅇㅇ시스템 | C124: 입출하관리 | D124: 제품입고 현황 | E124: 완제품 입고현황정보 조회 | F124: EQ | I124: 3.9 | J124: 수정없이 재사용 | T124: 완제품 입고정보 | U124: FALSE
B125: ㅇㅇ시스템 | C125: 입출하관리 | D125: 제품출하 지시 | E125: 완제품 출하지시정보 조회 | F125: EQ | I125: 3.9 | J125: 수정없이 재사용 | T125: 완제품 입고현황정보 조회 | U125: FALSE
B126: ㅇㅇ시스템 | C126: 입출하관리 | D126: 제품출하 처리 | E126: 완제품 출하처리 | F126: EI | I126: 4.0 | J126: 수정없이 재사용 | T126: 완제품 출하지시정보 조회 | U126: FALSE
B127: ㅇㅇ시스템 | C127: 입출하관리 | D127: 제품출하 현황 | E127: 기간별 제품 출하 현황 조회 | F127: EO | I127: 5.2 | J127: 수정없이 재사용 | T127: 완제품 출하처리 | U127: FALSE
B128: ㅇㅇ시스템 | C128: 입출하관리 | D128: 제품출하 현황 | E128: 제품별 제품 출하 현황 조회 | F128: EO | I128: 5.2 | J128: 수정없이 재사용 | T128: 기간별 제품 출하 현황 조회 | U128: FALSE
B129: ㅇㅇ시스템 | C129: 입출하관리 | D129: 제품미출하 현황 | E129: 제품 출하지시별 미출하 현황정보 조회 | F129: EQ | I129: 3.9 | J129: 수정없이 재사용 | T129: 제품별 제품 출하 현황 조회 | U129: FALSE
B130: ㅇㅇ시스템 | C130: 스마트패드 공정관리 | D130: 1라인 에폭시설비공정정보 | E130: 1라인 에폭시 경화/냉각설비 공정 온도정보 등록 | F130: EI | I130: 4.0 | J130: 신규개발 | T130: 제품 출하지시별 미출하 현황정보 조회 | U130: FALSE
B131: ㅇㅇ시스템 | C131: 스마트패드 공정관리 | D131: 1라인 에폭시설비공정정보 | E131: 1라인 에폭시설비공정정보 | F131: ILF | I131: 7.5 | J131: 신규개발 | T131: 1라인 에폭시 경화/냉각설비 공정 온도정보 등록 | U131: FALSE
B132: ㅇㅇ시스템 | C132: 스마트패드 공정관리 | D132: 2라인 에폭시설비공정정보 | E132: 2라인 에폭시 경화/냉각설비 공정 온도정보 등록 | F132: EI | I132: 4.0 | J132: 신규개발 | T132: 1라인 에폭시설비공정정보 | U132: FALSE
B133: ㅇㅇ시스템 | C133: 스마트패드 공정관리 | D133: 2라인 에폭시설비공정정보 | E133: 2라인 에폭시설비공정정보 | F133: ILF | I133: 7.5 | J133: 신규개발 | T133: 2라인 에폭시 경화/냉각설비 공정 온도정보 등록 | U133: FALSE
B134: ㅇㅇ시스템 | C134: 스마트패드 공정관리 | D134: 통계적 공정정보 관리 | E134: 엑폭시 경화/냉각설비 정보 등록 | F134: EI | I134: 4.0 | J134: 수정없이 재사용 | T134: 2라인 에폭시설비공정정보 | U134: FALSE
B135: ㅇㅇ시스템 | C135: 스마트패드 공정관리 | D135: 통계적 공정정보 관리 | E135: 엑폭시 경화/냉각설비 정보 수정 | F135: EI | I135: 4.0 | J135: 수정없이 재사용 | T135: 엑폭시 경화/냉각설비 정보 등록 | U135: FALSE
B136: ㅇㅇ시스템 | C136: 스마트패드 공정관리 | D136: 통계적 공정정보 관리 | E136: 엑폭시 경화/냉각설비 정보 삭제 | F136: EI | I136: 4.0 | J136: 수정없이 재사용 | T136: 엑폭시 경화/냉각설비 정보 수정 | U136: FALSE
B137: ㅇㅇ시스템 | C137: 스마트패드 공정관리 | D137: 통계적 공정정보 관리 | E137: 엑폭시 경화/냉각설비 정보 조회 | F137: EQ | I137: 3.9 | J137: 수정없이 재사용 | T137: 엑폭시 경화/냉각설비 정보 삭제 | U137: FALSE
B138: ㅇㅇ시스템 | C138: 스마트패드 공정관리 | D138: 통계적 공정정보 관리 | E138: 엑폭시 경화/냉각설비 정보 | F138: ILF | I138: 7.5 | J138: 수정없이 재사용 | T138: 엑폭시 경화/냉각설비 정보 조회 | U138: =T138=E138 -> FALSE
B139: ㅇㅇ시스템 | C139: 시스템관리 | D139: 사용자 설정 | E139: 시스템 사용자정보 및 비밀번호 등록 | F139: EI | I139: 4.0 | J139: 수정없이 재사용 | T139: 엑폭시 경화/냉각설비 정보 | U139: FALSE
B140: ㅇㅇ시스템 | C140: 시스템관리 | D140: 사용자 설정 | E140: 시스템 사용자정보 및 비밀번호 조회 | F140: EQ | I140: =IF(F140="","",IF(F140="EI",4,IF(F140="EO",5.2,IF(F140="EQ",3.9,IF(F140="ILF",7.5,IF(F140="EIF",5.4)))))) -> 3.9 | J140: 수정없이 재사용 | M140: =IFERROR(IF(J140="기능변경",K140/G140,""),"") ->  | N140: =IFERROR(IF(J140="기능변경",L140/H140,""),"") ->  | O140: =IF(J140="기능변경",IF(F140="ILF",N140,IF(F140="EIF","재검토",IF(M140=0,N140,IF(N140=0,M140,(M140+N140)/2)))),"") ->  | P140: =IF(O140<>0,IF(J140="기능변경",IF(O140<=0.33,0.25,IF(O140>0.66,0.75,0.5)),IF(J140="기능삭제",0,"")),"") ->  | Q140: =IFERROR(I140*P140,"") ->  | T140: 시스템 사용자정보 및 비밀번호 등록 | U140: FALSE
B141: ㅇㅇ시스템 | C141: 시스템관리 | D141: 사용자 설정 | E141: 시스템 사용자정보 및 비밀번호 수정 | F141: EI | I141: 4.0 | J141: 수정없이 재사용 | T141: 시스템 사용자정보 및 비밀번호 조회 | U141: FALSE
B142: ㅇㅇ시스템 | C142: 시스템관리 | D142: 사용자 설정 | E142: 시스템 사용자정보 및 비밀번호 정보 | F142: ILF | I142: 7.5 | J142: 수정없이 재사용 | T142: 시스템 사용자정보 및 비밀번호 수정 | U142: FALSE
B143: ㅇㅇ시스템 | C143: 시스템관리 | D143: 사용자그룹 관리 | E143: 시스템 사용그룹정보 등록 | F143: EI | I143: 4.0 | J143: 수정없이 재사용 | T143: 시스템 사용자정보 및 비밀번호 정보 | U143: FALSE
B144: ㅇㅇ시스템 | C144: 시스템관리 | D144: 사용자그룹 관리 | E144: 시스템 사용그룹정보 조회 | F144: EQ | I144: 3.9 | J144: 수정없이 재사용 | T144: 시스템 사용그룹정보 등록 | U144: FALSE
B145: ㅇㅇ시스템 | C145: 시스템관리 | D145: 사용자그룹 관리 | E145: 시스템 사용그룹정보 수정 | F145: EI | I145: 4.0 | J145: 수정없이 재사용 | T145: 시스템 사용그룹정보 조회 | U145: FALSE
B146: ㅇㅇ시스템 | C146: 시스템관리 | D146: 사용자그룹 관리 | E146: 시스템 사용그룹정보 | F146: ILF | I146: 7.5 | J146: 수정없이 재사용 | T146: 시스템 사용그룹정보 수정 | U146: FALSE
B147: ㅇㅇ시스템 | C147: 시스템관리 | D147: 사용자화면 설정 | E147: 사용자가 자주사용화면을 설정 | F147: EI | I147: 4.0 | J147: 수정없이 재사용 | T147: 시스템 사용그룹정보 | U147: FALSE
B148: ㅇㅇ시스템 | C148: 시스템관리 | D148: 그룹권한 설정 | E148: 시스템 사용그룹별 권한 조회, 쓰기, 수정 권한 설정 | F148: EI | I148: 4.0 | J148: 수정없이 재사용 | T148: 사용자가 자주사용화면을 설정 | U148: FALSE
B149: ㅇㅇ시스템 | C149: 시스템관리 | D149: 사용화면 설정 | E149: 시스템 사용자별 사용화면 설정 | F149: EI | I149: 4.0 | J149: 수정없이 재사용 | T149: 시스템 사용그룹별 권한 조회, 쓰기, 수정 권한 설정 | U149: FALSE
B150: ㅇㅇ시스템 | C150: 시스템관리 | D150: 리스트폭 설정 | E150: 기능별 정보조회 목록 리스트폭 설정 | F150: EI | I150: 4.0 | J150: 수정없이 재사용 | T150: 시스템 사용자별 사용화면 설정 | U150: FALSE
B151: ㅇㅇ시스템 | C151: 시스템관리 | D151: 설정관리 | E151: 기능별 화면 설정 | F151: EI | I151: 4.0 | J151: 수정없이 재사용 | T151: 기능별 정보조회 목록 리스트폭 설정 | U151: FALSE
B152: ㅇㅇ시스템 | C152: 시스템관리 | D152: 암호변경 | E152: 사용자 암호변경 | F152: EI | I152: 4.0 | J152: 수정없이 재사용 | T152: 기능별 화면 설정 | U152: FALSE
B153: ㅇㅇ시스템 | C153: 시스템관리 | D153: 공지사항관리 | E153: 시스템사용에 대한 공지사항 등록 | F153: EI | I153: 4.0 | J153: 수정없이 재사용 | T153: 사용자 암호변경 | U153: FALSE
B154: ㅇㅇ시스템 | C154: 시스템관리 | D154: 공지사항관리 | E154: 시스템사용에 대한 공지사항 조회 | F154: EQ | I154: 3.9 | J154: 수정없이 재사용 | T154: 시스템사용에 대한 공지사항 등록 | U154: FALSE
B155: ㅇㅇ시스템 | C155: 시스템관리 | D155: 공지사항관리 | E155: 시스템사용에 대한 공지사항 정보 | F155: ILF | I155: 7.5 | J155: 수정없이 재사용 | T155: 시스템사용에 대한 공지사항 조회 | U155: FALSE
B156: ㅇㅇ시스템 | C156: 시스템관리 | D156: 사용이력관리 | E156: 시스템 사용자 사용이력정보 등록 | F156: EI | I156: 4.0 | J156: 수정없이 재사용 | T156: 시스템사용에 대한 공지사항 정보 | U156: FALSE
B157: ㅇㅇ시스템 | C157: 시스템관리 | D157: 사용이력관리 | E157: 시스템 사용자 사용이력정보 수정 | F157: EI | I157: 4.0 | J157: 수정없이 재사용 | T157: 시스템 사용자 사용이력정보 등록 | U157: FALSE
B158: ㅇㅇ시스템 | C158: 시스템관리 | D158: 사용이력관리 | E158: 시스템 사용자 사용이력정보 삭제 | F158: EI | I158: 4.0 | J158: 수정없이 재사용 | T158: 시스템 사용자 사용이력정보 등록 | U158: FALSE
B159: ㅇㅇ시스템 | C159: 시스템관리 | D159: 사용이력관리 | E159: 시스템 사용자 사용이력정보 조회 | F159: EQ | I159: 3.9 | J159: 수정없이 재사용 | T159: 시스템 사용자 사용이력정보 등록 | U159: FALSE
B160: ㅇㅇ시스템 | C160: 시스템관리 | D160: 사용이력관리 | E160: 시스템 사용자 사용이력정보 | F160: ILF | I160: 7.5 | J160: 수정없이 재사용 | T160: 시스템 사용자 사용이력정보 등록 | U160: FALSE
T161: 시스템 사용자 사용이력정보 | U161: FALSE
I204: =IF(F204="","",IF(F204="EI",4,IF(F204="EO",5.2,IF(F204="EQ",3.9,IF(F204="ILF",7.5,IF(F204="EIF",5.4)))))) ->  | M204: =IFERROR(IF(J204="기능변경",K204/G204,""),"") ->  | N204: =IFERROR(IF(J204="기능변경",L204/H204,""),"") ->  | O204: =IF(J204="기능변경",IF(F204="ILF",N204,IF(F204="EIF","재검토",IF(M204=0,N204,IF(N204=0,M204,(M204+N204)/2)))),"") ->  | P204: =IF(O204<>0,IF(J204="기능변경",IF(O204<=0.33,0.25,IF(O204>0.66,0.75,0.5)),IF(J204="기능삭제",0,"")),"") ->  | Q204: =IFERROR(I204*P204,"") -> 
I300: =IF(F300="","",IF(F300="EI",4,IF(F300="EO",5.2,IF(F300="EQ",3.9,IF(F300="ILF",7.5,IF(F300="EIF",5.4)))))) -> 
M303: =IFERROR(IF(J303="기능변경",K303/G303,""),"") ->  | N303: =IFERROR(IF(J303="기능변경",L303/H303,""),"") ->  | O303: =IF(J303="기능변경",IF(F303="ILF",N303,IF(F303="EIF","재검토",IF(M303=0,N303,IF(N303=0,M303,(M303+N303)/2)))),"") ->  | P303: =IF(O303<>0,IF(J303="기능변경",IF(O303<=0.33,0.25,IF(O303>0.66,0.75,0.5)),IF(J303="기능삭제",0,"")),"") ->  | Q303: =IFERROR(I303*P303,"") -> 

Sheet SW재개발비 산정
B1: "OOO 사업" 소프트웨어 재개발비 산정
N2: (소프트웨어사업 대가산정 가이드, 2020. KOSA)
B4: ○ 재개발비 산정 | N4: (단위 : 원)
B5: 신규개발 | E5: 신규개발 기능 규모 | G5: ='FP산정(간이법)'!K2 -> 69.8 FP
B6: 수정없이 재사용 | E6: 수정없이 재사용 대상 기능 규모 | G6: ='FP산정(간이법)'!K5 -> 566.8 FP | J6: 시험단계 비율 (0~25%) | M6: 0%
E7: 수정없이 재사용 기능 규모 | G7: =G6*M6 -> 0.0 FP
B8: 수정 후 재사용 | E8: 기능변경 규모 | G8: ='FP산정(간이법)'!K3 -> 21.45 FP
E9: 재사용 난이도 | G9: =1+((L9+L10)/2)/100*0.8 -> 1.28 | I9: 구조화 및 애플리케이션 명확화 정도 | L9: =HLOOKUP(N9,P9:T10,2,FALSE) -> 40 | N9: 어려움 | P9: 매우 어려움 | Q9: 어려움 | R9: 보통 | S9: 쉬움 | T9: 매우 쉬움
I10: 문서화 및 소스코드 서술화 정도 | L10: =HLOOKUP(N10,P9:T10,2,0) -> 30 | N10: 보통 | P10: 50 | Q10: 40 | R10: 30 | S10: 20 | T10: 10
E11: 수정 후 재사용 기능 규모 | G11: =G8*G9 -> 27.5 FP
B12: 재개발 기능 규모 | E12: =G5+G7+G11 -> 97.3 FP | K12: 기능점수당 단가 | M12: 605,784
B13: 보정전 재개발원가 | E13: =E12*M12 -> 58,916,129
B14: 보정계수 | E14: 규모 | G14: 연계복잡성 | I14: 성능 | K14: 운영환경 호환성 | M14: 보안성
E15: =M33 -> 1.2800 | G15: =M34 -> 0.88 | I15: =M35 -> 0.95 | K15: =M36 -> 1.00 | M15: =M37 -> 1.00
B16: ①보정후 재개발원가 | E16: =E13*E15*G15*I15*K15*M15 -> 63,044,971
B17: ②직접경비 | E17: =M29 -> 0
B18: ③이윤 | D18: 25% | E18: =E16*D18 -> 15,761,243
B19: ④재개발 사업대가 (①+②+③) | E19: =SUM(E16:N18) -> 78,806,214
B20: ⑤할인금액 | E20: 5,000,000
B21: ⑥제안금액(VAT별도) (④-⑤) | E21: =E19-E20 -> 73,806,214
B24: ○ 직접경비 | N24: (단위 : 원)
B25: 항목 | E25: 산출내역 | M25: 금액
B29: 합 계 | M29: =SUM(M26:N28) -> 0
B31: ※ 보정계수 산정
B32: 보정계수 구분 | E32: 복잡도 및 난이도 수준 | M32: 보정계수
B33: SW규모 | E33: ="= 0.4057 x (log e("&F12&") - 7.1978)^2 + 0.8878 (단, 500FP 미만 1.28, 3,000FP 초과 1.153 적용)" -> = 0.4057 x (log e() - 7.1978)^2 + 0.8878 (단, 500FP 미만 1.28, 3,000FP 초과 1.153 적용) | M33: =IF(E12<500,1.28,IF(E12>3000,1.153,0.4057*(LN(E12)-7.1978)^2+0.8878)) -> 1.2800
B34: 연계복잡성 | E34: 1. 타 기관 연계 없음 | M34: =VLOOKUP(E34,P34:Q38,2,1) -> 0.88 | P34: 1. 타 기관 연계 없음 | Q34: 0.88
B35: 성능 요구수준 | E35: 2. 응답성능에 대한 요구사항이 있으나 특별한 조치가 필요하지는 않다. | M35: =VLOOKUP(E35,P39:Q43,2,1) -> 0.95 | P35: 2. 1~2개의 타 기관 연계 | Q35: 0.94
B36: 운영환경 호환성 | E36: 2. 운영환경 호환성에 대한 요구사항이 있으며, 동일 하드웨어 및 소프트웨어 환경에서 운영되도록 설계된다. | M36: =VLOOKUP(E36,P44:Q48,2,1) -> 1.00 | P36: 3. 3~5개의 타 기관 연계 | Q36: 1.00
B37: 보안성 요구수준 | E37: 2. 위의 4가지 항목 중 2가지 요구사항이 포함되어 있다. | M37: =VLOOKUP(E37,P49:Q53,2,1) -> 1.00 | P37: 4. 6~10개의 타 기관 연계 | Q37: 1.06
P38: 5. 10개 초과의 타 기관 연계 | Q38: 1.12
P39: 1. 응답성능에 대한 특별한 요구사항이 없다. | Q39: 0.91
P40: 2. 응답성능에 대한 요구사항이 있으나 특별한 조치가 필요하지는 않다. | Q40: 0.95
P41: 3. 응답시간이나 처리율이 피크타임(peak time)에 중요하며, 처리 시한이 명시되어 있다. | Q41: 1.00
P42: 4. 응답시간이나 처리율이 모든 업무시간에 중요하며, 처리 시한이 명시되어 있다. | Q42: 1.05
P43: 5. 응답성능 요구수준이 엄격하여, 설계, 개발 또는 구현 단계에서 성능 분석도구 사용이 필요하다. | Q43: 1.09
P44: 1. 운영환경 호환성에 대한 요구사항이 없다. | Q44: 0.94
P45: 2. 운영환경 호환성에 대한 요구사항이 있으며, 동일 하드웨어 및 소프트웨어 환경에서 운영되도록 설계된다. | Q45: 1.00
P46: 3. 운영환경 호환성에 대한 요구사항이 있으며, 유사 하드웨어 및 소프트웨어 환경에서 운영되도록 설계된다. | Q46: 1.06
P47: 4. 운영환경 호환성에 대한 요구사항이 있으며, 이질적인 하드웨어 및 소프트웨어 환경에서 운영되도록 설계된다. | Q47: 1.13
P48: 5. 항목 4에 더하여 일반적 산출물 이외에 장소에서 원활한 운영을 보장하기 위한 운영 절차의 문서화와 사전 모의훈련이 요구된다. | Q48: 1.19
P49: 1. 암호화, 웹취약점 점검, 시큐어코딩, 개인정보보호 등 1가지 보안 요구사항이 포함되어 있다. | Q49: 0.97
P50: 2. 2가지 요구사항이 포함되어 있다. | Q50: 1.00
P51: 3. 3가지 요구사항이 포함되어 있다. | Q51: 1.03
P52: 4. 4가지 항목이 모두 포함되어 있다. | Q52: 1.06
P53: 5. 5가지 이상의 보안 요구사항이 포함되어 있다. | Q53: 1.08

Sheet (참고)보정계수
B1: '- "OOO 사업" 소프트웨어 재개발비 산정 - 재개발 기능점수 방식(간이법)
B3: ○ 재사용 난이도 수준 평가 기준
B4: 구분 | C4: 매우 어려움 | D4: 어려움 | E4: 보통 | F4: 쉬움 | H4: 매우 쉬움
B5: 재사용 난이도 | C5: 50 | D5: 40 | E5: 30 | F5: 20 | H5: 10
B6: ① 구조화 및 어플리케이션 명확화 정도 | C6: 프로그램의 모듈화가 전혀되어 있지 않아 모듈과 어플리케이션기능의 대응 정도가 거의 없음 | D6: 프로그램의 모듈화가 어느 정도 되어 있어, 모듈과 어플리케이션기능의 대응 정도가 낮은편임 | E6: 프로그램의 모듈화가 보통 정도로, 모듈과 어플리케이션기능의 대응 정도가 보통 수준임 | F6: 프로그램의 모듈화가 잘 되어 있어, 모듈과 어플리케이션기능의 대응 정도가 높은 편임 | H6: 프로그램의 모듈화가 매우 잘 되어 있어, 모듈과 어플리케이션기능의 대응 정도가 매우 높은 수준임
B7: ② 문서화 및 소스코드의 서술화 정도 | C7: 문서화 또는 소스코드 서술화가 모두 안 되어 있어 재사용 소프트웨어의 수정이 매우 어려운 수준 | D7: 문서화 또는 소스코드 서술화 중 어느 하나가 보통 수준으로 되어 있고 다른 하나는 안 되어 있어 재사용 소프트웨어의 수정이 어려운 수준 | E7: 문서화와 소스코드 서술화가 모두 보통 수준으로 되어 있어 재사용 소프트웨어의 수정이 보통 수준 | F7: 문서화 또는 소스코드 서술화 중 어느 하나가 잘 되어 있어 재사용 소프트웨어의 수정이 용이한 수준 | H7: 문서화와 소스코드의 서술화가 모두 잘되어 있어 재사용 소프트웨어의 수정이 매우 용이한 수준
B9: ○ 규모 보정계수
B10: 구분 | D10: 산정방법
B11: SW규모 | D11: = 0.4057 x (log e(기능점수) - 7.1978)^2 + 0.8878 (단, 500FP 미만 1.28, 3,000FP 초과 1.153 적용)
B13: ○ 애플리케이션 복잡도 보정계수
B14: 구분 | D14: 복잡도 및 난이도 수준 | I14: 보정계수
B15: 연계복잡성 | D15: 1. 타 기관 연계 없음 | I15: 0.88
D16: 2. 1~2개의 타 기관 연계 | I16: 0.94
D17: 3. 3~5개의 타 기관 연계 | I17: 1.00
D18: 4. 6~10개의 타 기관 연계 | I18: 1.06
D19: 5. 10개 초과의 타 기관 연계 | I19: 1.12
B20: 성능 요구수준 | D20: 1. 응답성능에 대한 특별한 요구사항이 없다. | I20: 0.91
D21: 2. 응답성능에 대한 요구사항이 있으나 특별한 조치가 필요하지는 않다. | I21: 0.95
D22: 3. 응답시간이나 처리율이 피크타임(peak time)에 중요하며, 처리 시한이 명시되어 있다. | I22: 1.00
D23: 4. 응답시간이나 처리율이 모든 업무시간에 중요하며, 처리 시한이 명시되어 있다. | I23: 1.05
D24: 5. 응답성능 요구수준이 엄격하여, 설계, 개발 또는 구현 단계에서 성능 분석도구 사용이 필요하다. | I24: 1.09
B25: 운영환경 호환성 | D25: 1. 운영환경 호환성에 대한 요구사항이 없다. | I25: 0.94
D26: 2. 운영환경 호환성에 대한 요구사항이 있으며, 동일 하드웨어 및 소프트웨어 환경에서 운영되도록 설계된다. | I26: 1.00
D27: 3. 운영환경 호환성에 대한 요구사항이 있으며, 유사 하드웨어 및 소프트웨어 환경에서 운영되도록 설계된다. | I27: 1.06
D28: 4. 운영환경 호환성에 대한 요구사항이 있으며, 이질적인 하드웨어 및 소프트웨어 환경에서 운영되도록 설계된다. | I28: 1.13
D29: 5. 항목 4에 더하여 일반적 산출물 이외에 장소에서 원활한 운영을 보장하기 위한 운영 절차의 문서화와 사전 모의훈련이 요구된다. | I29: 1.19
B30: 보안성 요구수준 | D30: 1. 암호화, 웹취약점 점검, 시큐어코딩, 개인정보보호 등 1가지 보안 요구사항이 포함되어 있다. | I30: 0.97
D31: 2. 2가지 요구사항이 포함되어 있다. | I31: 1.00
D32: 3. 3가지 요구사항이 포함되어 있다. | I32: 1.03
D33: 4. 4가지 항목이 모두 포함되어 있다. | I33: 1.06
D34: 5. 5가지 이상의 보안 요구사항이 포함되어 있다. | I34: 1.08
